fUSD/lending_fUSD_20260528
["ID","MTS","AMOUNT","RATE_DAILY","PERIOD"]
[423199628,1779919864000,-155.0,0.00041374,120]
[423199625,1779919864000,-152.0,0.00041374,120]
[423199630,1779919864000,-151.0,0.00041374,120]
[423199631,1779919864000,-155.0,0.00041374,120]
[423199629,1779919864000,-154.0,0.00041374,120]
[423199632,1779919864000,-163.0,0.00041374,120]
[423199633,1779919864000,-156.0,0.00041374,120]
[423199635,1779919864000,-183.50611135,0.00041376,7]
[423199624,1779919864000,-159.0,0.00041374,120]
[423199704,1779919865000,-500.0,0.00041998,90]
[423199710,1779919865000,-1613.0535,0.00041999,30]
[423199703,1779919865000,-200.0,0.00041998,61]
[423199702,1779919865000,-500.0,0.00041998,31]
[423199707,1779919865000,-500.0,0.00041998,60]
[423199706,1779919865000,-500.0,0.00041998,61]
[423199705,1779919865000,-209.67285534,0.00041998,60]
[423199709,1779919865000,-150.0,0.00041999,14]
[423199720,1779919865000,-1000.0,0.00041999,120]
[423199716,1779919865000,-500.0,0.00041999,120]
[423199713,1779919865000,-500.0,0.00041999,120]
[423199714,1779919865000,-206.33422798,0.00041999,60]
[423199715,1779919865000,-500.0,0.00041999,90]
[423199718,1779919865000,-200.0,0.00041999,120]
[423199717,1779919865000,-213.96859442,0.00041999,45]
[423199701,1779919865000,-500.0,0.00041998,60]
[423199712,1779919865000,-198.97225456,0.00041999,90]
[423199708,1779919865000,-9850.0,0.00041999,14]
[423199682,1779919865000,-1593.9050148,0.000419,120]
[423199699,1779919865000,-500.0,0.00041998,61]
[423199719,1779919865000,-500.0,0.00041999,60]
[423199683,1779919865000,-1593.9050148,0.000419,120]
[423199687,1779919865000,-1593.9050148,0.000419,120]
[423199685,1779919865000,-1593.9050148,0.000419,120]
[423199688,1779919865000,-2117.85961796,0.00041902,60]
[423199684,1779919865000,-1593.9050148,0.000419,120]
[423199686,1779919865000,-1593.9050148,0.000419,120]
[423199689,1779919865000,-600.0,0.00041904,120]
[423199690,1779919865000,-1400.0,0.00041904,120]
[423199692,1779919865000,-790.7072263,0.00041917,120]
[423199691,1779919865000,-153.52,0.00041904,120]
[423199693,1779919865000,-1748.0,0.00041954,2]
[423199694,1779919865000,-153.52,0.00041954,120]
[423199698,1779919865000,-200.0,0.00041998,31]
[423199697,1779919865000,-500.0,0.00041998,90]
[423199696,1779919865000,-500.0,0.00041998,31]
[423199695,1779919865000,-161.66,0.00041973,120]
[423199700,1779919865000,-200.0,0.00041998,90]
[423199724,1779919865000,-500.0,0.00041999,90]
[423199711,1779919865000,-1107.63007,0.00041999,30]
[423199723,1779919865000,-500.0,0.00041999,45]
[423199743,1779919865000,-1000.0,0.00042,120]
[423199746,1779919865000,-999999.98,0.00042,120]
[423199742,1779919865000,-154.85,0.00042,120]
[423199744,1779919865000,-800.0,0.00042,45]
[423199749,1779919865000,-800.0,0.00042,45]
[423199750,1779919865000,-800.0,0.00042,45]
[423199751,1779919865000,-800.0,0.00042,45]
[423199753,1779919865000,-800.0,0.00042,45]
[423199755,1779919865000,-800.0,0.00042,45]
[423199752,1779919865000,-800.0,0.00042,45]
[423199757,1779919865000,-500.0,0.00042,120]
[423199756,1779919865000,-800.0,0.00042,45]
[423199759,1779919865000,-153.52,0.00042004,120]
[423199758,1779919865000,-800.0,0.00042,45]
[423199761,1779919865000,-150.0,0.00042054,30]
[423199760,1779919865000,-1383.66266172,0.0004201,2]
[423199721,1779919865000,-220.0,0.00041999,120]
[423199748,1779919865000,-716.0,0.00042,120]
[423199747,1779919865000,-800.0,0.00042,45]
[423199754,1779919865000,-800.0,0.00042,45]
[423199741,1779919865000,-154.85,0.00042,120]
[423199722,1779919865000,-200.0,0.00041999,90]
[423199745,1779919865000,-526.0,0.00042,120]
[423199726,1779919865000,-500.0,0.00041999,30]
[423199725,1779919865000,-200.0,0.00041999,60]
[423199727,1779919865000,-500.0,0.00041999,60]
[423199733,1779919865000,-500.0,0.00041999,30]
[423199731,1779919865000,-200.0,0.00041999,30]
[423199729,1779919865000,-500.0,0.00041999,31]
[423199732,1779919865000,-500.0,0.00041999,61]
[423199728,1779919865000,-200.0,0.00041999,45]
[423199734,1779919865000,-200.0,0.00041999,31]
[423199737,1779919865000,-500.0,0.00041999,61]
[423199735,1779919865000,-500.0,0.00041999,31]
[423199739,1779919865000,-500.0,0.00042,2]
[423199736,1779919865000,-200.0,0.00041999,61]
[423199730,1779919865000,-500.0,0.00041999,45]
[423199738,1779919865000,-50000.0,0.00042,14]
[423199740,1779919865000,-150.0,0.00042,120]
[423199786,1779919866000,-153.52,0.00042354,120]
[423199794,1779919866000,-1000.0,0.0004237,45]
[423199795,1779919866000,-220.0,0.0004237,45]
[423199793,1779919866000,-200.0,0.0004237,45]
[423199785,1779919866000,-1455.2,0.00042347,120]
[423199791,1779919866000,-500.0,0.0004237,45]
[423199788,1779919866000,-151.0,0.0004237,45]
[423199796,1779919866000,-668.65185759,0.0004237,45]
[423199792,1779919866000,-500.0,0.0004237,45]
[423199797,1779919866000,-151.0,0.0004237,45]
[423199805,1779919866000,-155.0,0.00042374,120]
[423199799,1779919866000,-154.0,0.00042374,120]
[423199801,1779919866000,-159.0,0.00042374,120]
[423199800,1779919866000,-168.0,0.00042374,120]
[423199810,1779919866000,-156.0,0.00042374,120]
[423199809,1779919866000,-163.0,0.00042374,120]
[423199802,1779919866000,-152.0,0.00042374,120]
[423199804,1779919866000,-155.0,0.00042374,120]
[423199803,1779919866000,-165.0,0.00042374,120]
[423199808,1779919866000,-155.0,0.00042374,120]
[423199787,1779919866000,-695.39793187,0.0004237,45]
[423199798,1779919866000,-1000.0,0.0004237,45]
[423199784,1779919866000,-330.0,0.0004234,96]
[423199764,1779919866000,-153.52,0.00042104,120]
[423199782,1779919866000,-155.0,0.000423,120]
[423199806,1779919866000,-154.0,0.00042374,120]
[423199767,1779919866000,-153.52,0.00042154,120]
[423199768,1779919866000,-350.0,0.00042159,3]
[423199769,1779919866000,-1000.0,0.00042192,120]
[423199762,1779919866000,-153.52,0.00042054,120]
[423199765,1779919866000,-211.53386683,0.00042105,120]
[423199766,1779919866000,-2431.493,0.00042133,2]
[423199770,1779919866000,-5721.07490109,0.000422,2]
[423199778,1779919866000,-1000.0,0.00042269,2]
[423199779,1779919866000,-1000.0,0.00042269,2]
[423199771,1779919866000,-153.52,0.00042204,120]
[423199772,1779919866000,-118923.83342053,0.0004222,5]
[423199773,1779919866000,-150.0,0.00042226,120]
[423199774,1779919866000,-150.0,0.00042249,2]
[423199777,1779919866000,-1000.0,0.00042269,2]
[423199776,1779919866000,-153.52,0.00042254,120]
[423199775,1779919866000,-171.3883951,0.00042249,3]
[423199781,1779919866000,-1008.21769689,0.00042269,2]
[423199780,1779919866000,-1000.0,0.00042269,2]
[423199790,1779919866000,-200.0,0.0004237,45]
[423199789,1779919866000,-191.87295522,0.0004237,45]
[423199783,1779919866000,-153.52,0.00042304,120]
[423199807,1779919866000,-151.0,0.00042374,120]
[423199763,1779919866000,-151.0,0.000421,120]
[423199815,1779919866000,-6063.0,0.00042402,2]
[423199835,1779919866000,-800.0,0.000425,45]
[423199838,1779919866000,-760.28,0.00042546,120]
[423199834,1779919866000,-800.0,0.000425,45]
[423199842,1779919866000,-1352.0,0.00042561,2]
[423199843,1779919866000,-2387.35654291,0.0004257,120]
[423199844,1779919866000,-150.0,0.00042602,30]
[423199847,1779919866000,-153.52,0.00042654,120]
[423199846,1779919866000,-2387.35654291,0.00042618,120]
[423199845,1779919866000,-153.52,0.00042604,120]
[423199850,1779919866000,-150.0,0.00042669,120]
[423199848,1779919866000,-2387.35654291,0.00042666,120]
[423199849,1779919866000,-150.0,0.00042669,120]
[423199851,1779919866000,-150.0,0.00042693,120]
[423199852,1779919866000,-153.52,0.00042704,120]
[423199853,1779919866000,-188.73724811,0.00042709,120]
[423199859,1779919866000,-670.58624095,0.00042738,90]
[423199856,1779919866000,-231.71105934,0.00042726,120]
[423199857,1779919866000,-164.1821554,0.00042726,120]
[423199854,1779919866000,-2387.35654291,0.00042713,120]
[423199858,1779919866000,-464.96483623,0.00042726,96]
[423199812,1779919866000,-1266.801,0.000424,120]
[423199841,1779919866000,-153.52,0.00042554,120]
[423199839,1779919866000,-1367.63,0.00042546,120]
[423199855,1779919866000,-200.0,0.00042719,120]
[423199837,1779919866000,-153.52,0.00042504,120]
[423199840,1779919866000,-35666.33,0.00042546,120]
[423199818,1779919866000,-600.0,0.00042452,120]
[423199811,1779919866000,-1266.801,0.000424,120]
[423199813,1779919866000,-1266.8,0.000424,120]
[423199819,1779919866000,-1400.0,0.00042452,120]
[423199820,1779919866000,-350.0,0.00042452,4]
[423199816,1779919866000,-931.0,0.00042402,2]
[423199817,1779919866000,-153.52,0.00042404,120]
[423199821,1779919866000,-153.52,0.00042454,120]
[423199831,1779919866000,-151.0,0.000425,120]
[423199822,1779919866000,-1000.0,0.00042464,80]
[423199814,1779919866000,-54591.0,0.000424,30]
[423199824,1779919866000,-800.0,0.000425,45]
[423199832,1779919866000,-800.0,0.000425,45]
[423199833,1779919866000,-800.0,0.000425,45]
[423199825,1779919866000,-800.0,0.000425,45]
[423199830,1779919866000,-800.0,0.000425,45]
[423199826,1779919866000,-800.0,0.000425,45]
[423199827,1779919866000,-800.0,0.000425,45]
[423199823,1779919866000,-161.75615396,0.00042466,120]
[423199828,1779919866000,-800.0,0.000425,45]
[423199829,1779919866000,-800.0,0.000425,45]
[423199836,1779919866000,-500.0,0.000425,120]
[423199876,1779919867000,-162.0,0.000428,120]
[423199882,1779919867000,-181.4,0.0004283,120]
[423199893,1779919867000,-500.0,0.00042879,100]
[423199885,1779919867000,-150.0,0.00042866,120]
[423199894,1779919867000,-178.42522448,0.00042879,35]
[423199890,1779919867000,-151.0,0.00042879,35]
[423199887,1779919867000,-623.58710447,0.00042879,100]
[423199886,1779919867000,-2261.51036038,0.0004287,5]
[423199895,1779919867000,-181.08010149,0.00042879,100]
[423199889,1779919867000,-151.0,0.00042879,100]
[423199891,1779919867000,-500.0,0.00042879,100]
[423199892,1779919867000,-200.0,0.00042879,100]
[423199900,1779919867000,-187.78006524,0.00042879,35]
[423199901,1779919867000,-200.0,0.00042879,100]
[423199896,1779919867000,-500.0,0.00042879,35]
[423199897,1779919867000,-200.0,0.00042879,35]
[423199879,1779919867000,-2387.35654291,0.00042809,120]
[423199898,1779919867000,-500.0,0.00042879,100]
[423199888,1779919867000,-646.65982734,0.00042879,35]
[423199884,1779919867000,-2387.35654291,0.00042857,120]
[423199868,1779919867000,-1000.0,0.00042738,90]
[423199881,1779919867000,-10425.05674898,0.0004282,2]
[423199902,1779919867000,-500.0,0.00042879,35]
[423199865,1779919867000,-215.5806872,0.00042738,90]
[423199864,1779919867000,-500.0,0.00042738,90]
[423199866,1779919867000,-500.0,0.00042738,90]
[423199867,1779919867000,-200.0,0.00042738,90]
[423199861,1779919867000,-185.02695778,0.00042738,90]
[423199863,1779919867000,-200.0,0.00042738,90]
[423199860,1779919867000,-151.0,0.00042738,90]
[423199862,1779919867000,-500.0,0.00042738,90]
[423199869,1779919867000,-220.0,0.00042738,90]
[423199873,1779919867000,-153.52,0.00042754,120]
[423199871,1779919867000,-151.0,0.00042738,90]
[423199872,1779919867000,-1000.0,0.00042738,90]
[423199870,1779919867000,-644.79446245,0.00042738,90]
[423199874,1779919867000,-2387.35654291,0.00042761,120]
[423199875,1779919867000,-250.46341063,0.0004277,120]
[423199878,1779919867000,-153.52,0.00042804,120]
[423199877,1779919867000,-19303.07475476,0.000428,60]
[423199880,1779919867000,-330.0,0.00042815,102]
[423199883,1779919867000,-153.52,0.00042854,120]
[423199904,1779919867000,-1000.0,0.00042879,100]
[423199903,1779919867000,-273.34052324,0.00042879,100]
[423199938,1779919867000,-581.77679065,0.00042957,120]
[423199929,1779919867000,-16132.7408527,0.000429,15]
[423199933,1779919867000,-2387.35654291,0.00042904,120]
[423199932,1779919867000,-153.52,0.00042904,120]
[423199931,1779919867000,-1549.0,0.000429,120]
[423199934,1779919867000,-220.8321459,0.00042952,2]
[423199936,1779919867000,-153.52,0.00042954,120]
[423199937,1779919867000,-151.16438412,0.00042957,120]
[423199935,1779919867000,-2387.35654291,0.00042952,120]
[423199939,1779919867000,-169.60070205,0.00042959,2]
[423199940,1779919867000,-601.3376128,0.00042989,60]
[423199942,1779919867000,-153.64302685,0.00042989,60]
[423199941,1779919867000,-151.0,0.00042989,60]
[423199943,1779919867000,-500.0,0.00042989,60]
[423199944,1779919867000,-200.0,0.00042989,60]
[423199945,1779919867000,-174.61919142,0.00042989,60]
[423199946,1779919867000,-1726.84058493,0.00042989,60]
[423199947,1779919867000,-500.0,0.00042989,60]
[423199948,1779919867000,-172.05904,0.00042989,60]
[423199899,1779919867000,-500.0,0.00042879,35]
[423199928,1779919867000,-267.1,0.0004288,100]
[423199927,1779919867000,-267.1,0.0004288,100]
[423199930,1779919867000,-170.0,0.000429,120]
[423199924,1779919867000,-267.1,0.0004288,100]
[423199907,1779919867000,-1000.0,0.00042879,35]
[423199909,1779919867000,-151.0,0.00042879,100]
[423199906,1779919867000,-200.0,0.00042879,35]
[423199905,1779919867000,-220.0,0.00042879,100]
[423199910,1779919867000,-220.0,0.00042879,35]
[423199908,1779919867000,-599.60298507,0.00042879,100]
[423199925,1779919867000,-267.1,0.0004288,100]
[423199912,1779919867000,-151.0,0.00042879,35]
[423199914,1779919867000,-1000.0,0.00042879,100]
[423199913,1779919867000,-1000.0,0.00042879,35]
[423199915,1779919867000,-267.1,0.0004288,100]
[423199911,1779919867000,-621.78829552,0.00042879,35]
[423199919,1779919867000,-267.1,0.0004288,100]
[423199916,1779919867000,-267.1,0.0004288,100]
[423199918,1779919867000,-267.1,0.0004288,100]
[423199917,1779919867000,-267.1,0.0004288,100]
[423199920,1779919867000,-267.1,0.0004288,100]
[423199922,1779919867000,-267.1,0.0004288,100]
[423199923,1779919867000,-267.1,0.0004288,100]
[423199921,1779919867000,-267.1,0.0004288,100]
[423199926,1779919867000,-267.1,0.0004288,100]
[423199984,1779919868000,-1000.0,0.00042997,106]
[423199985,1779919868000,-168.3888056,0.00042997,106]
[423199978,1779919868000,-200.0,0.00042997,106]
[423199974,1779919868000,-168.3888056,0.00042997,106]
[423199980,1779919868000,-160.0,0.00042997,106]
[423199979,1779919868000,-168.3888056,0.00042997,106]
[423199975,1779919868000,-500.0,0.00042997,106]
[423199977,1779919868000,-557.5788265,0.00042997,106]
[423199989,1779919868000,-151.0,0.00042997,106]
[423199981,1779919868000,-152.0,0.00042997,106]
[423199992,1779919868000,-162.380719,0.00042998,30]
[423199997,1779919868000,-500.0,0.00042998,30]
[423199988,1779919868000,-557.5788265,0.00042997,106]
[423199986,1779919868000,-249.85938344,0.00042997,106]
[423199993,1779919868000,-151.0,0.00042998,30]
[423199991,1779919868000,-559.19188,0.00042998,30]
[423199990,1779919868000,-1000.0,0.00042997,106]
[423199994,1779919868000,-151.0,0.00042998,30]
[423199996,1779919868000,-162.380719,0.00042998,30]
[423199995,1779919868000,-500.0,0.00042998,30]
[423199998,1779919868000,-200.0,0.00042998,30]
[423199982,1779919868000,-168.3888056,0.00042997,106]
[423199987,1779919868000,-220.0,0.00042997,106]
[423199976,1779919868000,-691.39774486,0.00042997,106]
[423199952,1779919868000,-578.20924312,0.00042989,60]
[423199968,1779919868000,-151.0,0.00042997,106]
[423199950,1779919868000,-500.0,0.00042989,60]
[423199949,1779919868000,-174.61919141,0.00042989,60]
[423199951,1779919868000,-716.97946147,0.00042989,60]
[423199954,1779919868000,-160.0,0.00042989,60]
[423199960,1779919868000,-174.61919144,0.00042989,60]
[423199953,1779919868000,-174.80890539,0.00042989,60]
[423199958,1779919868000,-174.61919142,0.00042989,60]
[423199956,1779919868000,-152.0,0.00042989,60]
[423199961,1779919868000,-220.0,0.00042989,60]
[423199959,1779919868000,-1000.0,0.00042989,60]
[423199973,1779919868000,-557.5788265,0.00042997,106]
[423199955,1779919868000,-200.0,0.00042989,60]
[423199972,1779919868000,-500.0,0.00042997,106]
[423199971,1779919868000,-200.0,0.00042997,106]
[423199963,1779919868000,-151.0,0.00042989,60]
[423199965,1779919868000,-579.88197956,0.00042997,106]
[423199962,1779919868000,-578.20924308,0.00042989,60]
[423199964,1779919868000,-1000.0,0.00042989,60]
[423199966,1779919868000,-168.38880563,0.00042997,106]
[423199970,1779919868000,-168.3888056,0.00042997,106]
[423199967,1779919868000,-151.0,0.00042997,106]
[423199969,1779919868000,-500.0,0.00042997,106]
[423199957,1779919868000,-348.08601848,0.00042989,60]
[423200003,1779919868000,-1555.5,0.00042998,30]
[423199983,1779919868000,-334.5472959,0.00042997,106]
[423200004,1779919868000,-165.92,0.00042998,30]
[423200024,1779919868000,-539.24,0.00042999,30]
[423200026,1779919868000,-151.0,0.00042999,120]
[423200025,1779919868000,-156.587,0.00042999,30]
[423200028,1779919868000,-500.0,0.00042999,120]
[423200027,1779919868000,-151.0,0.00042999,120]
[423200033,1779919868000,-151.0,0.00042999,30]
[423200034,1779919868000,-252.5382538,0.00042999,120]
[423200040,1779919868000,-500.0,0.00042999,30]
[423200035,1779919868000,-500.0,0.00042999,120]
[423200043,1779919868000,-620.0,0.00042999,120]
[423200042,1779919868000,-500.0,0.00042999,120]
[423200038,1779919868000,-200.0,0.00042999,30]
[423200041,1779919868000,-156.587,0.00042999,30]
[423200037,1779919868000,-500.0,0.00042999,30]
[423200039,1779919868000,-500.0,0.00042999,120]
[423200051,1779919868000,-220.0,0.00042999,120]
[423200045,1779919868000,-200.0,0.00042999,120]
[423200044,1779919868000,-518.5,0.00042999,30]
[423200046,1779919868000,-156.587,0.00042999,30]
[423200047,1779919868000,-3535.6914591,0.00042999,120]
[423200050,1779919868000,-3000.0,0.00042999,30]
[423200049,1779919868000,-151.0,0.00042999,120]
[423200002,1779919868000,-500.0,0.00042998,30]
[423200022,1779919868000,-501.84917602,0.00042999,120]
[423200032,1779919868000,-151.0,0.00042999,30]
[423200036,1779919868000,-151.0,0.00042999,120]
[423200030,1779919868000,-200.0,0.00042999,120]
[423199999,1779919868000,-537.6845,0.00042998,30]
[423200031,1779919868000,-151.0,0.00042999,120]
[423200001,1779919868000,-3111.0,0.00042998,30]
[423200000,1779919868000,-162.380719,0.00042998,30]
[423200007,1779919868000,-666.72878,0.00042998,30]
[423200005,1779919868000,-1068.11,0.00042998,30]
[423200008,1779919868000,-162.380719,0.00042998,30]
[423200009,1779919868000,-200.0,0.00042998,30]
[423200010,1779919868000,-269.91761902,0.00042998,30]
[423200011,1779919868000,-220.0,0.00042998,30]
[423200012,1779919868000,-160.0,0.00042998,30]
[423200013,1779919868000,-152.0,0.00042998,30]
[423200006,1779919868000,-537.6845,0.00042998,30]
[423200023,1779919868000,-151.0,0.00042999,120]
[423200015,1779919868000,-162.380719,0.00042998,30]
[423200017,1779919868000,-151.0,0.00042998,30]
[423200048,1779919868000,-1676.75196359,0.00042999,120]
[423200014,1779919868000,-322.6107,0.00042998,30]
[423200018,1779919868000,-162.380719,0.00042998,30]
[423200019,1779919868000,-537.6845,0.00042998,30]
[423200021,1779919868000,-520.0,0.00042999,120]
[423200020,1779919868000,-151.0,0.00042998,30]
[423200016,1779919868000,-1000.0,0.00042998,30]
[423200029,1779919868000,-500.0,0.00042999,120]
[423200079,1779919869000,-1000.0,0.00042999,30]
[423200085,1779919869000,-600.0,0.00043,120]
[423200087,1779919869000,-400.42557063,0.00043,2]
[423200083,1779919869000,-1000.0,0.00042999,30]
[423200081,1779919869000,-151.0,0.00042999,30]
[423200082,1779919869000,-200.0,0.00042999,7]
[423200086,1779919869000,-1400.0,0.00043,120]
[423200084,1779919869000,-1000.0,0.00042999,120]
[423200089,1779919869000,-57898.74966461,0.00043,7]
[423200088,1779919869000,-214.0,0.00043,7]
[423200092,1779919869000,-235.71826,0.00043,10]
[423200100,1779919869000,-800.0,0.00043,45]
[423200093,1779919869000,-118778.85988534,0.00043,120]
[423200095,1779919869000,-1000000.0,0.00043,120]
[423200094,1779919869000,-1000000.0,0.00043,120]
[423200096,1779919869000,-898220.0,0.00043,120]
[423200098,1779919869000,-89829.0,0.00043,120]
[423200097,1779919869000,-13958.0,0.00043,120]
[423200101,1779919869000,-239.79727281,0.00043,60]
[423200105,1779919869000,-800.0,0.00043,45]
[423200102,1779919869000,-2387.35654291,0.00043,120]
[423200099,1779919869000,-986.88205736,0.00043,120]
[423200080,1779919869000,-156.587,0.00042999,30]
[423200091,1779919869000,-160.0,0.00043,2]
[423200090,1779919869000,-30000.0,0.00043,10]
[423200052,1779919869000,-160.0,0.00042999,120]
[423200076,1779919869000,-311.1,0.00042999,30]
[423200053,1779919869000,-500.0,0.00042999,30]
[423200106,1779919869000,-1455.2,0.00043,120]
[423200054,1779919869000,-251.0,0.00042999,120]
[423200056,1779919869000,-300.0,0.00042999,120]
[423200058,1779919869000,-151.0,0.00042999,120]
[423200062,1779919869000,-151.0,0.00042999,120]
[423200061,1779919869000,-1030.0,0.00042999,30]
[423200060,1779919869000,-500.0,0.00042999,120]
[423200057,1779919869000,-151.0,0.00042999,120]
[423200055,1779919869000,-2642.9444445,0.00042999,120]
[423200059,1779919869000,-1500.0,0.00042999,30]
[423200066,1779919869000,-152.0,0.00042999,120]
[423200065,1779919869000,-160.0,0.00042999,30]
[423200063,1779919869000,-1000.0,0.00042999,120]
[423200064,1779919869000,-151.0,0.00042999,120]
[423200068,1779919869000,-642.94,0.00042999,30]
[423200069,1779919869000,-200.0,0.00042999,30]
[423200078,1779919869000,-152.0,0.00042999,30]
[423200075,1779919869000,-151.0,0.00042999,30]
[423200077,1779919869000,-156.587,0.00042999,30]
[423200072,1779919869000,-260.287,0.00042999,30]
[423200073,1779919869000,-160.0,0.00042999,30]
[423200067,1779919869000,-518.5,0.00042999,30]
[423200070,1779919869000,-156.587,0.00042999,30]
[423200071,1779919869000,-220.0,0.00042999,30]
[423200074,1779919869000,-518.5,0.00042999,30]
[423200104,1779919869000,-800.0,0.00043,45]
[423200107,1779919869000,-800.0,0.00043,45]
[423200116,1779919869000,-1077.51137292,0.00043,2]
[423200139,1779919869000,-500.0,0.000431,15]
[423200138,1779919869000,-500.0,0.000431,15]
[423200140,1779919869000,-500.0,0.000431,15]
[423200141,1779919869000,-500.0,0.000431,15]
[423200143,1779919869000,-500.0,0.000431,15]
[423200150,1779919869000,-151.0,0.000431,7]
[423200151,1779919869000,-151.0,0.000431,7]
[423200152,1779919869000,-403.139978,0.000431,20]
[423200153,1779919869000,-403.139978,0.000431,20]
[423200145,1779919869000,-500.0,0.000431,15]
[423200144,1779919869000,-500.0,0.000431,15]
[423200147,1779919869000,-500.0,0.000431,15]
[423200149,1779919869000,-151.0,0.000431,7]
[423200146,1779919869000,-500.0,0.000431,15]
[423200148,1779919869000,-312.932397,0.000431,15]
[423200156,1779919869000,-152.978847,0.000431,120]
[423200154,1779919869000,-403.139978,0.000431,20]
[423200160,1779919869000,-153.52,0.00043104,120]
[423200158,1779919869000,-152.978847,0.000431,120]
[423200157,1779919869000,-152.978847,0.000431,120]
[423200155,1779919869000,-403.139978,0.000431,20]
[423200159,1779919869000,-152.978847,0.000431,120]
[423200161,1779919869000,-150.0,0.0004313,120]
[423200162,1779919869000,-150.0,0.0004315,30]
[423200103,1779919869000,-200.0,0.00043,7]
[423200137,1779919869000,-500.0,0.000431,15]
[423200134,1779919869000,-337.813778,0.000431,28]
[423200142,1779919869000,-500.0,0.000431,15]
[423200131,1779919869000,-337.813778,0.000431,28]
[423200117,1779919869000,-1077.51137292,0.00043,2]
[423200133,1779919869000,-337.813778,0.000431,28]
[423200115,1779919869000,-800.0,0.00043,45]
[423200118,1779919869000,-800.0,0.00043,45]
[423200109,1779919869000,-800.0,0.00043,45]
[423200110,1779919869000,-800.0,0.00043,45]
[423200108,1779919869000,-800.0,0.00043,45]
[423200114,1779919869000,-800.0,0.00043,45]
[423200111,1779919869000,-151.0,0.00043,120]
[423200112,1779919869000,-151.0,0.00043,120]
[423200120,1779919869000,-1714.46,0.00043,30]
[423200119,1779919869000,-800.0,0.00043,45]
[423200121,1779919869000,-153.52,0.00043004,120]
[423200113,1779919869000,-151.0,0.00043,120]
[423200135,1779919869000,-500.0,0.000431,15]
[423200136,1779919869000,-500.0,0.000431,15]
[423200123,1779919869000,-150.0,0.0004303,120]
[423200132,1779919869000,-337.813778,0.000431,28]
[423200130,1779919869000,-151.0,0.000431,120]
[423200128,1779919869000,-109912.59450956,0.000431,120]
[423200129,1779919869000,-4978.92335084,0.000431,120]
[423200127,1779919869000,-330.0,0.00043087,108]
[423200122,1779919869000,-500.0,0.00043013,100]
[423200124,1779919869000,-152.0,0.00043037,30]
[423200125,1779919869000,-153.52,0.00043054,120]
[423200126,1779919869000,-152.0,0.00043083,120]
[423200202,1779919870000,-155.0,0.000434,120]
[423200207,1779919870000,-200.0,0.00043429,7]
[423200206,1779919870000,-330.0,0.00043414,118]
[423200204,1779919870000,-153.52,0.00043404,120]
[423200197,1779919870000,-151.0,0.00043374,120]
[423200194,1779919870000,-155.0,0.00043374,120]
[423200199,1779919870000,-163.0,0.00043374,120]
[423200200,1779919870000,-156.0,0.00043374,120]
[423200198,1779919870000,-155.0,0.00043374,120]
[423200196,1779919870000,-154.0,0.00043374,120]